{"text_format":"1","workbook":"xlsx","n_sheets":20,"sheets":["Cover Page","Contents","Facility Info","Operational Data","Operational Summary","Perf. Form 1","Energy Form 1","Permit Compliance","Improvements","Public Liasion","Residue Quality ","Water","Air (periodic)","Air (CEMS)","HCl","SO2","NOx","TOC","Particulates","CO 95% 10 min"],"not_rendered":{"charts":6,"images":2,"macros":1,"external_links":1,"defined_names":20,"comments":0,"pivot_tables":0},"unopened":[],"bounds":{"document_bytes":16777216,"sheet_cells":100000,"rows_first":2000,"rows_last":500,"rows_between":2000,"halvings":0,"cell_chars":16384,"cell_head_chars":4096},"cells_cut":0,"cells_raw":0,"read":"whole","date_system":"1900"}

{"sheet":"Cover Page","index":0,"n_rows":53,"n_cols":14,"rows_kept":53,"cut":false,"hidden":false,"merged":[[48,2,48,3],[48,6,48,8],[52,2,52,3],[36,1,36,8],[40,2,40,8],[42,2,42,4],[44,2,44,4],[46,2,46,3],[46,6,46,8],[13,13,18,15],[34,1,34,8],[0,3,5,6],[7,1,23,8],[28,1,28,8],[30,1,30,8],[32,1,32,8]]}
[null,null,null,"Add company logo"]
[null,null,null,null,null,null,null,null,null,null,null,null,null,"Version 20.1 "]
[]
[]
[]
[]
[]
[null,"Add photo"]
[]
[]
[]
[]
[null,null,null,null,null,null,null,null,null,null,null,null,null,"Notes:"]
[null,null,null,null,null,null,null,null,null,null,null,null,null,"This template may require adjustments by individual operators to meet specific reporting requirements as defined in the site Permit(s)"]
[]
[]
[]
[]
[]
[]
[]
[]
[]
[]
[]
[]
[]
[]
[null,"Annual Performance Report 2020"]
[]
[null,"Permit EPR/FP3134GU and UP3005LJ"]
[]
[null,"Ardley Energy Recovery Facility"]
[]
[]
[]
[null,"VIRIDOR OXFORDSHIRE LIMITED"]
[]
[null,"Year:",2020]
[]
[null,"Address:","Ardley ERF, Middleton Stoney Road, Ardley, Oxon, OX27 7AA"]
[]
[null,"Tel: ","07788178544"]
[]
[null,"Email: ","HEdwards1@viridor.co.uk"]
[]
[null,"Prepared by:","Helen Edwards",null,null,"Position:","EHS Manager"]
[]
[null,"Approved by:","Philip Eyre",null,null,"Position:","Head of Operations (S)"]
[]
[null,"Version:",1]
[]
[null,"Issue Date:","2021-03-31"]

{"sheet":"Contents","index":1,"n_rows":43,"n_cols":11,"rows_kept":43,"cut":false,"hidden":false,"merged":[[42,0,45,9],[35,1,35,6],[36,1,36,6],[37,1,37,6],[38,1,38,6],[39,1,39,6],[40,1,40,6],[34,1,34,6],[21,1,21,6],[22,1,22,6],[25,1,25,6],[26,1,26,6],[27,1,27,6],[28,1,28,6],[29,1,29,6],[30,1,30,6],[33,1,33,6],[20,1,20,6],[9,1,9,6],[10,1,10,6],[11,1,11,6],[12,1,12,6],[13,1,13,6],[14,1,14,6],[15,1,15,6],[16,1,16,6],[17,1,17,6],[18,1,18,6],[19,1,19,6],[4,10,7,14],[8,1,8,6],[3,1,3,6],[4,1,4,6],[5,1,5,6],[6,1,6,6],[7,1,7,6]]}
[{"$f":"+'Cover Page'!$B$29","v":"Annual Performance Report 2020"},null,null,null,{"$f":"+'Cover Page'!$B$33","v":"Ardley Energy Recovery Facility"}]
[]
["Contents",null,null,null,null,null,null,null,null,null,"Notes:"]
["Section","Subject",null,null,null,null,null,"Page ",null,null,"Section references and Page nos. to be inserted"]
[null,"Facility Information",null,null,null,null,null,3,null,null,"Sections and Subjects may require adjustment by individual operators to meet specific reporting requirements as defined in the sites Permit(s)"]
[null,"Operational Summary",null,null,null,null,null,5]
["4.2.2(b)(c )","Operational Data",null,null,null,null,null,4]
["4.2.2(b)(c )","Performance Form 1",null,null,null,null,null,6]
["4.2.2(b)(c )","Energy Form 1",null,null,null,null,null,7]
[null,"Permit Compliance",null,null,null,null,null,8]
[null,"Improvements",null,null,null,null,null,9]
[null,"Public Liaison",null,null,null,null,null,10]
["4.2.3 (a)","Residue Quality - Optional",null,null,null,null,null,11]
["4.2.3","Emissions to Water",null,null,null,null,null,12]
["4.2.3","Emissions to Air (periodically monitored)",null,null,null,null,null,13]
["4.2.3","Emissions to Air (continuously monitored)",null,null,null,null,null,14]
[null,"Hydrogen Chloride emissions",null,null,null,null,null,15]
[null,"Sulphur Dioxide emissions",null,null,null,null,null,16]
[null,"Oxides of Nitrogen emissions",null,null,null,null,null,17]
[null,"Total Organic Carbon emissions",null,null,null,null,null,18]
[null,"Particulate Matter emissions",null,null,null,null,null,19]
[null,"Carbon Monoxide emissions",null,null,null,null,null,20]
[]
[]
["Version Control"]
["Section","Information",null,null,null,null,null,"Date"]
[]
[]
[]
[]
[]
[]
["Distribution"]
["Copy","Name, Role",null,null,null,null,null,"No."]
[]
[]
[]
[]
[]
[]
[]
[]
["This report is required under the Industrial Emissions Directive’s Article 55(2) requirements on reporting and public information on waste incineration plants and co-incineration plants, which require the operator to produce an annual report on the functioning and monitoring of the plant and make it available to the public. "]

{"sheet":"Facility Info","index":2,"n_rows":22,"n_cols":11,"rows_kept":22,"cut":false,"hidden":false,"merged":[[21,0,53,8],[4,10,13,13],[21,10,30,13],[4,0,18,8]]}
[{"$f":"+'Cover Page'!$B$29","v":"Annual Performance Report 2020"},null,null,null,{"$f":"+'Cover Page'!$B$33","v":"Ardley Energy Recovery Facility"}]
[]
["Plant Description and Design",null,null,null,null,null,null,null,null,null,"Notes:"]
[]
["Ardley Energy from Waste (EFW) facility is located close to junction 10 of the M40. The facility has a design capacity to process 300,000 tonnes per year of residual municipal waste and has the capability of exporting 26.9MW of electricity.\n\nIn accordance with the requirements of Condition 4.2.3, Schedule 4 and Table S5.1 of Permit EPR/FP3134GU issued by Environment Agency to Viridor Waste Management Limited (Viridor) on 29 September 2010, Viridor is required to submit a summary of the environmental monitoring works undertaken at the site on a quarterly basis. Such reports will form the basis of the annual environmental review report, which is to be submitted to the Environment Agency by 31 March as agreed in writing with the Environment Agency of each year in accordance with Condition 4.2.2 of the Permit.\n\nViridor note, in line with Permit variation dated 21 April 2015; 30 minute carbon monoxide (CO) average monitoring was replaced with CO 10 minute average monitoring.\n\nThis report summarises the environmental and performance data collected at the site 1st January – 31st December 2020 and fulfils the requirement of Chapter IV Article 55(2) of the Industrial Emissions Directive.\n\nOn the 18th December 2020 permit FP3134GU for Viridor Waste Management Limited was transferred in full to Viridor Oxfordshire Limited under an updated permit reference of UP3005LJ. ",null,null,null,null,null,null,null,null,null,"Include summary of plant design, design capacity, no. of combustion lines, electrical and heat capacity and any other general information that describes the facility, its location and purpose "]
[]
[]
[]
[]
[]
[]
[]
[]
[]
[]
[]
[]
[]
[]
["Summary of Operational Processes and Procedures"]
[]
["Incoming waste is mainly received Oxfordshire County Council Waste Partnership, the rest is received from third party businesses. Waste is received into an enclosed waste bunker. The waste is loaded into one of two furnaces, which combust the waste at >850°C. The hot gases are put through a variety of heat exchangers used to heat demineralised water to create superheated steam which drives a turbine generator. The turbine generator produces around 30MWh and exports around 26MWh. Combusted waste (incinerator bottom ash) is sent to a third party within the footprint of the facility for further processing. The gasses are treated with Lime, Activated carbon and Urea to remove potential pollution leaving the stack. The powder containing reacted gas particulates (APCr) is removed and sent via a third party for reprocessing. Emissions are monitored via Continuous Emissions Monitoring equipment (CEMs) provided by A1-CBISS.",null,null,null,null,null,null,null,null,null,"Include summary of key processes and procedures such as (but not limited to); waste reception, control rooms, grate, bed and boiler, energy & heat  generation, cooling systems, residue management, emission controls, health and safety systems, maintenance"]

{"sheet":"Operational Data","index":3,"n_rows":55,"n_cols":11,"rows_kept":55,"cut":false,"hidden":false,"merged":[[5,10,6,10],[7,10,18,10],[32,1,34,1],[29,2,29,5],[29,6,29,7],[3,1,3,2],[7,1,19,1],[22,1,25,1],[27,1,28,1],[46,0,47,0]]}
[{"$f":"+'Cover Page'!$B$29","v":"Annual Performance Report 2020"},null,null,null,{"$f":"+'Cover Page'!$B$33","v":"Ardley Energy Recovery Facility"}]
[]
["Operational Data",null,null,null,null,null,null,null,null,null,"Notes:"]
["Plant Size",326300,null,"tonnes pa",null,"MWth",null,"MWe",null,null,"* - RDF to include SRF "]
["No. of combustion lines",2,null,"No. of Turbines:",null,1,null,null,null,null,"** - CHP plants only"]
[null,null,null,null,null,null,null,null,null,null,"2020 updates include;  heat in MWh, water in Litres, NCV in MJ/kg"]
["Waste types received","Unit","Q1","Q2","Q3","Q4","Year Total","%"]
["Household / Local Authority","tonnes",53371.48,58204.889999999992,54544.850000000006,48212.54,{"$f":"SUM(C8:F8)","v":214333.76},{"$f":"IF(G8>0,G8/$G$18,\"-\")","v":0.73892048964750334},null,null,"Availability Definition: 'the availability of a line is to be calculated by the number of hours the line reported Continuously Monitored emission levels to the Regulator through the calendar year divided by the total number of hours in that year. \nThe overall plant availability is calculated as the Mean of all lines in the plant. For clarity this includes periods of Other Than Normal Operating Conditions (OTNOC) and abnormal operation.'  \n\nRationale: The primary function of an Energy from Waste facility is the disposal of waste. It follows therefore that the availability of a plant is determined by the period of time a facility spends undertaking this activity."]
["Commercial & Industrial ",null,22892.519999999997,19561.590000000004,19207.52,14067.97,{"$f":"SUM(C9:F9)","v":75729.600000000006},0.26107951035249682]
["Hazardous ",null,"-","-","-","-",0,"-"]
["Clinical",null,"-","-","-","-",0,"-"]
["Waste wood (biomass) ",null,"-","-","-","-",0,"-"]
["Refuse Derived Fuel * - H'hold/LA",null,"-","-","-","-",{"$f":"SUM(C13:F13)","v":0},"-"]
["Refuse Derived Fuel *  - C&I",null,"-","-","-","-",0,"-"]
["Other [Please specify]",null,"-","-","-","-",0,"-"]
["Other [Please specify]",null,"-","-","-","-"]
["Other [Please specify]",null,"-","-","-","-"]
["Total waste combusted",null,{"$f":"SUM(C8:C17)","v":76264},{"$f":"SUM(D8:D17)","v":77766.48},{"$f":"SUM(E8:E17)","v":73752.37000000001},{"$f":"SUM(F8:F17)","v":62280.51},{"$f":"SUM(G8:G17)","v":290063.35999999999},{"$f":"IF(G18>0,G18/$G$18,\"-\")","v":1}]
["Rejected Waste ",null,0,0,0,0,{"$f":"SUM(C19:F19)","v":0},{"$f":"IF(G19>0,G19/$G$18,\"-\")","v":"-"}]
["Unprocessed waste transferred out",null,"-","-","-","-",{"$f":"SUM(C20:F20)","v":0},{"$f":"IF(G20>0,G20/$G$18,\"-\")","v":"-"}]
[]
["Energy Usage / Export","Unit","Q1","Q2","Q3","Q4","Year Total","KWh/te"]
["Power Generated","MWh",37516,58637,57398,30596,{"$f":"SUM(C23:F23)","v":184147},{"$f":"IF(G23>0,G23*1000/$G$18,\"-\")","v":634.85095118528591}]
["Power Exported",null,33545,52006,50636,27027,{"$f":"SUM(C24:F24)","v":163214},{"$f":"IF(G24>0,G24*1000/$G$18,\"-\")","v":562.68395980795367}]
["Power Used on site",null,6422,6681,6866,5705,{"$f":"SUM(C25:F25)","v":25674},88.51169620320195]
["Power Imported",null,2451,50,104,2136,4741,16.344704825869769]
["Parasitic Load","%",{"$f":"IF(C23>0,1-C24/(C23+C26),\"-\")","v":0.16068256311456952},{"$f":"IF(D23>0,1-D24/(D23+D26),\"-\")","v":0.11384122548434916},0.11940454245069732,0.1742942686056459,0.13592181610266396]
["Thermal Energy Produced **","MWh","-","-","-","-",{"$f":"SUM(C28:F28)","v":0},"-"]
["Thermal Energy Exported **",null,"-","-","-","-",0,"-"]
["R1 value",null,"Subject to confirmation",null,null,null,"Design / Operational / n/a"]
[]
["Waste Disposal & Recovery","Unit","Q1","Q2","Q3","Q4","Year Total","% inputs"]
["APC Residues - produced","tonnes",1771,1791,1722,1265,{"$f":"SUM(C33:F33)","v":6549},{"$f":"IF(G33>0,G33/$G$18,\"-\")","v":2.2577825755035037E-2}]
["IBA - produced",null,11500,13241,11727,13090,49558,{"$f":"IF(G34>0,G34/$G$18,\"-\")","v":0.17085232688471927}]
["Metals recycling",null,1477.66,1493.54,1569.06,1272.8,{"$f":"SUM(C35:F35)","v":5813.06},{"$f":"IF(G35>0,G35/$G$18,\"-\")","v":2.0040655944963199E-2}]
[]
["Raw Material Usage","Unit","Q1","Q2","Q3","Q4","Year Total","kg or Ltr /te"]
["Mains Water","ltrs",{"$f":"(6693*1000)","v":6693000},{"$f":"(10236*1000)","v":10236000},{"$f":"(10481*1000)","v":10481000},{"$f":"(7770*1000)","v":7770000},{"$f":"SUM(C38:F38)","v":35180000},{"$f":"IF(G38>0,G38/$G$18,\"-\")","v":121.283846398249}]
["Other Water","ltrs","-","-","-","-",0,{"$f":"IF(G39>0,G39/$G$18,\"-\")","v":"-"}]
["Urea","kgs",89000,103000,100000,75000,{"$f":"SUM(C40:F40)","v":367000},{"$f":"IF(G40>0,G40/$G$18,\"-\")","v":1.2652408080772422}]
["Activated Carbon","kgs",16720,17240,17720,15200,66880,{"$f":"IF(G41>0,G41/$G$18,\"-\")","v":0.23057031401690997}]
["Lime / hydrated lime","kgs",983650,1074670,986600,681600,3726520,12.847262060261594]
["Fuel oil","ltrs",{"$f":"111.17*1000","v":111170},158730,149150,219610,638660,2.2017948078654266]
["Gas","cf",0,0,0,0,0]
[]
["Summary ","Line/Unit","Q1","Q2","Q3","Q4","Year Total",null,null,"Hrs in year "]
["Availability of waste combustion by line, hrs",1,2062,2088,1893,1623,{"$f":"SUM(C47:F47)","v":7666},{"$f":"(G47/J47)","v":0.87272313296903459},null,8784,"leap year"]
[null,2,2047,2004,2184,1634,7869,{"$f":"(G48/J47)","v":0.89583333333333337}]
["Overall Availability, mean avg. of all lines, hrs",null,{"$f":"AVERAGE(C47:C48)","v":2054.5},{"$f":"AVERAGE(D47:D48)","v":2046},2038.5,1628.5,{"$f":"AVERAGE(G47:G48)","v":7767.5},{"$f":"(G49/J47)","v":0.88427823315118392}]
["Hours of turbine operations, hrs",1,{"$f":"2184-885","v":1299},{"$f":"2184-15.25","v":2168.75},{"$f":"2208-35.25","v":2172.75},1183,6823.5,{"$f":"(G50/J47)","v":0.77681010928961747}]
["Hours of heat / steam export",null,"-","-","-","-",0,{"$f":"IF(B51>0,#REF!/J47,\"n/a\")","v":"n/a"}]
["Net Calorific Value of waste","MJ/kg",5.8,5.8,5.8,5.8,null,"-"]
["Abnormal Events","qty.",0,0,0,0,0,{"$f":"IF(G53>0,\"yes\",\"no\")","v":"no"}]
["Abnormal operation","hours",0,0,0,0,0,{"$f":"+(G54)/J47","v":0}]
["Permit Breaches","qty.",0,0,1,0,1,{"$f":"IF(G55>0,\"yes\",\"no\")","v":"yes"}]

{"sheet":"Operational Summary","index":4,"n_rows":31,"n_cols":11,"rows_kept":31,"cut":false,"hidden":false,"merged":[[4,0,26,8],[30,0,51,8],[4,10,13,13],[30,10,39,13]]}
[{"$f":"+'Cover Page'!$B$29","v":"Annual Performance Report 2020"},null,null,null,{"$f":"+'Cover Page'!$B$33","v":"Ardley Energy Recovery Facility"}]
[]
["Summary of Plant Operations and Maintenance during the reporting year",null,null,null,null,null,null,null,null,null,"Notes:"]
[]
["Following the loss of generation capability reported in 2019, The generator returned to Ardley on 23 January 2020 and began export 6 February 2020.\n\nThe plant operated steadily throughout the year of 2020 with 2033 hrs off burning waste across both lines including the annual shutdown outage period.\n\nThe annual shutdown outage for 2020 commenced on 11 October 2020 concluding on 10 November 2020 during which the plant combustion systems and FGT and ancillary systems underwent checks, and as required repair, and legal compliance inspections under PSSR were carried out. The shutdown had been planned for June 2020 but was delayed due to the ongoing pandemic, due to the deferral of the scheduled maintenance period there were a number of short stoppages for maintenance and repair\n\nFollowing the outage period on 06 November 2020 during start up of the second line, the site suffered a turbine trip due to a pump failure and condensate ingress into the turbine casing. Following thorough inspection and cleaning there was no damage found and the turbine was returrned to service.  Generation recommenced on 02 December 2020.\n\nArdley ERF notes that  the calculated parasitic load for the facility in this report incorporates imported energy wheras the calculation applied internally is Power Generated – Power Exported. If this formula is applied then the overall parasitic load for Ardley in 2020 is 11.4% rather than 13.6% shown in the operational data.\n\nIn September the plant successfully underwent continuation audits of ISO9001, ISO14001 and ISO45001. \n\nThe CEMS underwent QAL2 calibration checks in June 2020 and the calibration factors were applied. ",null,null,null,null,null,null,null,null,null,"Include summary of key operational and/or maintenance activity undertaken in the year, such as any major component upgrades and/or replacements "]
[]
[]
[]
[]
[]
[]
[]
[]
[]
[]
[]
[]
[]
[]
[]
[]
[]
[]
[]
[]
[]
[]
[]
["Summary of Residue Handling for the reporting year"]
[]
["All IBA produced on site (including the metal content) is conveyed to the Fortis IBA facility, based within the footprint of Ardley ERF, for reprocessing. They remove and recycle the ferrous and non-ferrous metals and then create IBAA (Incinerator Bottom Ash Aggregate) from the remaining material. Their Aggregates team then utilise this in various construction and highways projects. There have been no hazardous results from IBA testing in 2020.\n\nAPCr is collected by direct transfer from the on site silo into transport tanker by Grundons and goes to one of three reprocesses or for disposal. APCr to the O.C.O Technology Ltd (formally Carbon8) site at Brandon (EPR/JP3332FK), Anonmouth (EPR/HP3638WW), or Leeds (EPR/TP3737YG) is taken through their accelerated carbonation technology. These carbonated wastes are blended with binders and fillers and pelletised to form an aggregate. APCr sent to Grundon APCr plant at Wingmoor Farm landfill site, Gloucestershire (EPR/NP3831ST) is mixed with water before it is transferred to a hazardous waste cell in the landfill.\n"]

{"sheet":"Perf. Form 1","index":5,"n_rows":51,"n_cols":10,"rows_kept":51,"cut":false,"hidden":false,"merged":[[50,7,50,8],[34,7,34,8],[34,4,34,5],[34,0,34,3],[44,0,44,1],[46,0,46,9],[47,0,48,9],[35,0,35,9],[40,0,40,1],[40,2,40,9],[42,0,42,1],[43,0,43,1],[36,0,37,9],[33,0,33,3],[33,4,33,5],[33,7,33,8],[31,0,31,3],[31,4,31,5],[31,7,31,8],[32,0,32,3],[32,4,32,5],[32,7,32,8],[30,0,30,3],[30,4,30,5],[30,7,30,8],[20,0,20,3],[20,4,20,5],[20,6,20,7],[20,8,20,9],[22,0,22,9],[23,0,25,9],[28,0,28,3],[28,7,28,8],[29,0,29,3],[29,4,29,5],[29,7,29,8],[19,0,19,3],[19,4,19,5],[19,6,19,7],[19,8,19,9],[17,0,17,1],[17,2,17,3],[17,4,17,5],[17,6,17,7],[17,8,17,9],[18,0,18,1],[18,2,18,3],[18,4,18,5],[18,6,18,7],[18,8,18,9],[16,0,16,9],[13,0,13,1],[13,2,13,3],[13,4,13,5],[13,6,13,7],[13,8,13,9],[14,0,14,3],[14,4,14,5],[14,6,14,7],[14,8,14,9],[15,0,15,1],[15,2,15,3],[15,4,15,5],[15,6,15,7],[15,8,15,9],[11,0,11,1],[11,2,11,3],[11,4,11,5],[11,6,11,7],[11,8,11,9],[12,0,12,1],[12,2,12,3],[12,4,12,5],[12,6,12,7],[12,8,12,9],[9,0,9,9],[10,0,10,1],[10,2,10,3],[10,4,10,5],[10,6,10,7],[10,8,10,9],[2,0,2,4],[2,6,2,8],[3,1,3,4],[5,3,5,4],[5,6,5,7],[8,0,8,1],[8,2,8,3],[8,4,8,5],[8,6,8,7],[8,8,8,9]]}
[{"$f":"+'Cover Page'!C39","v":2020}," Annual Reporting Performance Form 1"]
[]
[{"$f":"+'Cover Page'!B31","v":"Permit EPR/FP3134GU and UP3005LJ"},null,null,null,null,"Operator: ",{"$f":"+'Cover Page'!B37:I37","v":0}]
["Facility:",{"$f":"+'Cover Page'!B33:I33","v":"Ardley Energy Recovery Facility"},null,null,null,"Form:","Performance 1"]
[]
["Reporting  Period from: ",null,null,"2020-01-01",null,"to:","2020-12-31"]
[]
[{"$f":"+A1","v":2020},"Annual Reporting of Waste Disposal and Recovery"]
["Waste Description",null,"Disposal Route(s)",null,"Disposal Tonnes",null,"Recovery Tonnes",null,"% / tonne of waste incinerated"]
["1) Hazardous Wastes"]
["APC Residues",null,"OCO Technology",null,null,null,5548.86,null,{"$f":"IF((E11+G11)>0,(E11+G11)/'Operational Data'!$G$18, \"-\")","v":1.9129820464053093E-2}]
["APC Residues",null,"Grundon ",null,1037.6199999999999,null,null,null,{"$f":"IF((E12+G12)>0,(E12+G12)/'Operational Data'!$G$18, \"-\")","v":3.5772184394471606E-3}]
[null,null,null,null,null,null,null,null,{"$f":"IF((E13+G13)>0,(E13+G13)/'Operational Data'!$G$18, \"-\")","v":"-"}]
[null,null,null,null,null,null,null,null,{"$f":"IF((E14+G14)>0,(E14+G14)/'Operational Data'!$G$18, \"-\")","v":"-"}]
["Total Hazardous Waste",null,null,null,{"$f":"SUM(E11:F14)","v":1037.6199999999999},null,{"$f":"SUM(G11:H14)","v":5548.86},null,{"$f":"IF((E15+G15)>0,(E15+G15)/'Operational Data'!$G$18, \"-\")","v":2.2707038903500256E-2}]
[]
["2) Non-Hazardous Wastes"]
["IBA",null,"Fortis IBA",null,null,null,49558,null,{"$f":"IF((E18+G18)>0,(E18+G18)/'Operational Data'!$G$18, \"-\")","v":0.17085232688471927}]
["Ferrous Metal",null,"VRM",null,null,null,5813.06,null,{"$f":"IF((E19+G19)>0,(E19+G19)/'Operational Data'!$G$18, \"-\")","v":2.0040655944963199E-2}]
["Total Non-Hazardous Waste",null,null,null,{"$f":"SUM(E18:F19)","v":0},null,{"$f":"SUM(G18:H19)","v":55371.06},null,{"$f":"IF((E20+G20)>0,(E20+G20)/'Operational Data'!$G$18, \"-\")","v":0.19089298282968245}]
["TOTAL WASTE",null,null,null,{"$f":"+E20+E15","v":1037.6199999999999},null,{"$f":"+G20+G15","v":60919.92},null,{"$f":"IF((E21+G21)>0,(E21+G21)/'Operational Data'!$G$18, \"-\")","v":0.21360002173318271}]
[]
["Operator’s comments :"]
["All IBA produced on site (including the metal content) is reprocessed by Fortis IBA who separate the ferrous and non-ferrous metals to return to Ardley ERF ownership and create IBAA (Incinerator Bottom Ash Aggregate) from the remaining material. Metals returned to Ardley ERF ownership are managed through Viridor Resource Management for recycling.\nAPCr is taken either through OCO Technologies accelerated carbonation technology where carbonated wastes are blended with binders and fillers and pelletised to form an aggregate, or are send to Hazardous waste landfill."]
[]
[]
[]
[{"$f":"+A1","v":2020},"Annual Reporting of Water and Other Raw Material Usage"]
["Raw Material",null,null,null,"Usage",null,"Unit","Specific Usage",null,"Unit"]
["Mains Water",null,null,null,{"$f":"+'Operational Data'!G38","v":35180000},null,"m3",{"$f":"IF(E30>0,E30/'Operational Data'!$G$18/1000,\"-\")","v":0.12128384639824899},null,"m3/te"]
["Total Water",null,null,null,{"$f":"+'Operational Data'!G39+'Operational Data'!G38","v":35180000},null,"m3",{"$f":"IF(E31>0,E31/'Operational Data'!$G$18/1000,\"-\")","v":0.12128384639824899},null,"m3/te"]
["Urea / Ammonia",null,null,null,{"$f":"+'Operational Data'!G40","v":367000},null,"kg",{"$f":"IF(E32>0,E32/'Operational Data'!$G$18,\"-\")","v":1.2652408080772422},null,"kg/te"]
["Activated Carbon",null,null,null,{"$f":"+'Operational Data'!G41","v":66880},null,"kg",{"$f":"IF(E33>0,E33/'Operational Data'!$G$18,\"-\")","v":0.23057031401690997},null,"kg/te"]
["Lime / hydrated lime / Sodium Bicarb.",null,null,null,{"$f":"+'Operational Data'!G42","v":3726520},null,"kg",{"$f":"IF(E34>0,E34/'Operational Data'!$G$18,\"-\")","v":12.847262060261594},null,"kg/te"]
[]
["Operator’s comments :"]
["Raw Materials Usage reviewed 26 May 2020.  Water reported in litres in operational data, converted to m3 for specific usage"]
[]
[]
[{"$f":"+A28","v":2020},"Annual Reporting of other performance indicators "]
["Parameter",null,"Results by Line"]
[null,null,"A1","A2","A3","A4","A5",null,"Turbine 1","Turbine 2"]
["Operating hours for the year, hours",null,{"$f":"'Operational Data'!G47","v":7666},{"$f":"'Operational Data'!G48","v":7869},null,null,null,null,{"$f":"'Operational Data'!G50","v":6823.5}]
["Number of periods of abnormal operation, qty.",null,0,0,null,null,null,null,0]
["Cumulative hours of abnormal operation for this year, hours",null,0,0,null,null,null,null,0]
[]
["Operator’s comments :"]
[]
[]
[]
["Signed: ","H. Edwards",null,null,null,null,"Date:","2021-03-24"]

{"sheet":"Energy Form 1","index":6,"n_rows":29,"n_cols":8,"rows_kept":29,"cut":false,"hidden":false,"merged":[[28,1,28,2],[28,7,28,8],[15,0,15,2],[15,3,15,4],[15,6,15,8],[17,0,17,8],[18,0,24,8],[13,0,13,2],[13,3,13,4],[13,6,13,8],[14,0,14,2],[14,3,14,4],[14,6,14,8],[11,0,11,2],[11,3,11,4],[11,6,11,8],[12,0,12,2],[12,3,12,4],[12,6,12,8],[9,0,9,2],[9,3,9,4],[9,6,9,8],[10,0,10,2],[10,3,10,4],[10,6,10,8],[2,6,2,8],[4,1,4,4],[6,3,6,4],[6,6,6,7],[8,0,8,2],[8,3,8,4],[8,6,8,8]]}
[{"$f":"+'Cover Page'!C39","v":2020}," Annual Reporting of Energy Usage/Export"]
[]
[{"$f":"+'Cover Page'!B31","v":"Permit EPR/FP3134GU and UP3005LJ"},null,null,null,null,"Operator: ",{"$f":"+'Cover Page'!B37:I37","v":0}]
[]
["Facility:",{"$f":"+'Cover Page'!B33:I33","v":"Ardley Energy Recovery Facility"},null,null,null,"Form:","Energy 1"]
[]
["Reporting  Period from: ",null,null,{"$f":"+'Perf. Form 1'!D6:E6","v":"2020-01-01"},null,"to:",{"$f":"+'Perf. Form 1'!G6:H6","v":"2020-12-31"}]
[]
["Energy Source",null,null,"Energy Usage",null,"Unit","Specific Useage (KWh/tonne incinerated"]
["Electricity Produced",null,null,{"$f":"+'Operational Data'!G23","v":184147},null,"MWh",{"$f":"+'Operational Data'!H23","v":634.85095118528591}]
["Electricity Imported   ",null,null,{"$f":"+'Operational Data'!G26","v":4741},null,"MWh",{"$f":"+'Operational Data'!H26","v":16.344704825869769}]
["Electricity Exported",null,null,{"$f":"+'Operational Data'!G24","v":163214},null,"MWh",{"$f":"+'Operational Data'!H24","v":562.68395980795367}]
["Gas Oil",null,null,{"$f":"('Operational Data'!G43*0.85)/1000","v":542.86099999999999},null,"tonnes"]
["Steam/hot water exported",null,null,{"$f":"+'Operational Data'!G29","v":0},null,"GWh"]
[]
[]
[]
["Operator’s comments :"]
["\nMass diesel (gas oil) calculated with density = 0.85 kg/l (tonnes=(litres fuel oil used*0.85)/1000))"]
[]
[]
[]
[]
[]
[]
[]
[]
[]
["Signed: ","H.Edwards",null,null,null,null,"Date:","2021-03-24"]

{"sheet":"Permit Compliance","index":7,"n_rows":25,"n_cols":12,"rows_kept":25,"cut":false,"hidden":false,"merged":[[22,0,22,9],[24,1,24,3],[24,4,24,6],[24,7,24,9],[23,1,23,3],[23,4,23,6],[23,7,23,9],[16,0,16,8],[19,1,19,3],[19,4,19,6],[19,7,19,9],[20,1,20,3],[20,4,20,6],[20,7,20,9],[17,0,17,8],[18,0,18,9],[13,5,13,8],[14,0,14,1],[14,2,14,4],[14,5,14,8],[15,0,15,1],[15,2,15,4],[15,5,15,8],[7,0,7,1],[7,2,7,8],[8,0,8,1],[8,2,8,4],[8,5,8,8],[8,11,17,14],[25,4,25,8],[9,0,9,1],[9,2,9,4],[9,5,9,8],[10,0,10,1],[10,2,10,4],[10,5,10,8],[11,0,11,1],[11,2,11,4],[11,5,11,8],[12,0,12,1],[12,2,12,4],[12,5,12,8],[13,0,13,1],[13,2,13,4]]}
[{"$f":"+'Cover Page'!$B$29","v":"Annual Performance Report 2020"},null,null,null,{"$f":"+'Cover Page'!$B$33","v":"Ardley Energy Recovery Facility"}]
[]
["Summary of Permit Compliance"]
[]
["Compliance with permit limits for continuously monitored pollutants"]
[]
["The plant met its emission limits as shown in the table below:"]
["Substance",null,"Percentage time compliant during operation",null,null,null,null,null,null,null,null,"Notes:"]
[null,null,"Half-hourly limit",null,null,"Daily limit",null,null,null,null,null,"Report to 2 decimal places, i.e. xx.xx%\n\nPlease provide a brief summary of each notification or non-compliance in the table (rather than just referring to notifications that were sent to the Regulator).  \n\n"]
["Particulates",null,1,null,null,1]
["Oxides of nitrogen",null,1,null,null,1]
["Sulphur dioxide",null,1,null,null,1]
["Carbon monoxide",null,"100% 95% of 10-min averages",null,null,1]
["Total organic carbon",null,0.99997000000000003,null,null,1]
["Hydrogen chloride",null,1,null,null,1]
["Hydrogen fluoride",null,1,null,null,1]
["1/2 hourly % = (No. half hour exceedance / (2 x 15535)) x 100,    15,535hrs running during year across 2 lines"]
["Daily % = (No.Daily exceedance / (No. operational hours/24)) x 100"]
["Summary of any notifications or non-compliances under the permit"]
["Date","Summary of notification or non-compliance ",null,null,"Reason ",null,null,"Measures taken to prevent reoccurrence"]
["2020-08-02","An elevated half hour average (13:30pm – 13:59pm) of Total Organic Carbon (TOC) was recorded with a measurement of 20.16 mg/m3 (Half hour permit limit 20 mg/m3) from emission point A2. ",null,null,"The rise in TOC’s is believed to be linked to mature waste\ntowards the bottom of the stockpile.",null,null,"In line with the Ardley Business Continuity Plan for Covid 19, increased waste levels were held in the bunker ahead of predicted collections disruption. Waste levels returned to normal operational levels as the national restrictions were lifted and the site transitioned away from emergency Business Continuity Measures."]
[]
["Summary of any complaints received and actions to taken to resolve them."]
["Date","Summary of complaint ",null,null,"Reason *",null,null,"Measures taken to prevent reoccurrence"]
["26/08/2020 14:31pm","Compliant received via EA of \"a mild smell of burning plastic in Bucknell starting at 10.20 am on Sunday 23/08/20. The caller states the wind direction  was coming from the incinerator.\"",null,null,"Unable to substantiate due to time elapsed between complaint and reporting. Investigation undertaken and found no basis for complaint. Plant under normal operation.",null,null,"No further actions taken. "]

{"sheet":"Improvements","index":8,"n_rows":39,"n_cols":5,"rows_kept":39,"cut":false,"hidden":false,"merged":[[37,0,37,9],[38,0,47,9],[4,0,4,9],[5,0,13,9],[15,0,15,9],[16,0,24,9],[26,0,26,9],[27,0,35,9]]}
[{"$f":"+'Cover Page'!$B$29","v":"Annual Performance Report 2020"},null,null,null,{"$f":"+'Cover Page'!$B$33","v":"Ardley Energy Recovery Facility"}]
[]
["Summary of Plant Improvements"]
[]
["Summary of any efficiency improvements that have been completed within the year."]
["Use of Raw Materials Review undertaken in May 2020\nAvoidance, Recovery and Disposal of Waste Review undertaken in June 2020\nCombined Heat and Power Review undertaken in July 2020\n\n"]
[]
[]
[]
[]
[]
[]
[]
[]
[]
["Summary of any permit improvement conditions that have been completed within the year and the resulting environmental benefits."]
["All Improvement Conditions associated with Ardley Energy Recovery Facility's Environmental Permit EPR/FP3134GU were completed prior to the calendar year of 2020. "]
[]
[]
[]
[]
[]
[]
[]
[]
[]
["Summary of any changes to the plant or operating techniques which required a variation to the permit and a summary of the resulting environmental impact."]
["No changes to the plant or operating techniques which required a variation to the Permit were undertaken during the review period of 2020. "]
[]
[]
[]
[]
[]
[]
[]
[]
[]
["Summary of any other improvements made to the plant or planned to be made and a summary of the resulting environmental benefits."]
["None"]

{"sheet":"Public Liasion","index":9,"n_rows":25,"n_cols":5,"rows_kept":25,"cut":false,"hidden":false,"merged":[[24,0,24,9],[12,0,13,1],[21,0,22,1],[21,2,22,9],[12,2,13,9],[20,0,20,1],[20,2,20,9],[14,0,15,1],[14,2,15,9],[19,0,19,9],[16,0,17,9],[5,0,5,1],[5,2,5,9],[6,0,7,1],[6,2,7,9],[10,0,11,1],[10,2,11,9],[8,0,9,1],[8,2,9,9]]}
[{"$f":"+'Cover Page'!$B$29","v":"Annual Performance Report 2020"},null,null,null,{"$f":"+'Cover Page'!$B$33","v":"Ardley Energy Recovery Facility"}]
[]
["Details of Public & Stakeholder Liaison"]
[]
["Summary of events held during the reporting year."]
["Date",null,"Description"]
["January, September",null,"Public Liaison Meetings scheduled for councillors and residents of Middleton Stoney, Ardley & fewcott"]
[]
["Bi-Annually",null,"Waste Collection Authority Meetings"]
[]
["Online event",null,"Heritage Open Days - online events reaching 3106 individuals to date\n"]
[]
["Online event",null,"Community engagements. A community talk was hosted online with 319 views to date. A webinar for a community group reached 28 households. "]
[]
["As requested",null,"Environment Agency visits and site tours - as requested"]
[]
["Note: due to Covid 19 restrictions, site visitor centre activities have been adapted from previous years."]
[]
[]
["List of events planned for next year"]
["Date",null,"Description"]
[null,null,"As above. With the easing of Covid 19 restrictions it is hoped that Visitor Centre activities will recommence in 2021. Dates for this have not been confirmed."]
[]
[]
["If you wish to be involved in the public liaison programme, please contact Jessica Baker- Pike 01869 876747 "]

{"sheet":"Residue Quality ","index":10,"n_rows":36,"n_cols":6,"rows_kept":36,"cut":false,"hidden":false,"merged":[[35,0,40,6],[32,3,32,4],[34,0,34,6],[27,0,28,1],[29,0,29,1],[30,0,30,1],[31,0,31,1],[32,0,32,1],[29,3,29,4],[29,5,29,6],[30,5,30,6],[31,5,31,6],[32,5,32,6],[30,3,30,4],[20,0,21,1],[20,2,21,6],[22,0,23,1],[22,2,23,6],[31,3,31,4],[27,2,28,2],[28,3,28,4],[28,5,28,6],[27,3,27,6],[26,0,26,6],[5,0,6,6],[7,0,8,6],[9,0,10,6],[14,0,15,1],[14,2,15,6],[16,0,17,1],[16,2,17,6],[18,0,19,1],[18,2,19,6],[12,0,12,6],[13,0,13,1],[13,2,13,6]]}
[{"$f":"+'Cover Page'!$B$29","v":"Annual Performance Report 2020"},null,null,null,{"$f":"+'Cover Page'!$B$33","v":"Ardley Energy Recovery Facility"}]
[]
["Residue Quality Monitoring Requirements"]
[]
["Summary of monitoring undertaken and compliance"]
["IBA undergoes quarterly sampling as required by permit condition 3.5.1c and table 4.4 including TOC (separate lines), dioxins & furans and metals. TOC has a limit of <3%."]
[]
["24 samples of IBA are taken each year (including the 4 permit compliance samples) to undergo basic hazard analysis as required by the ESA protocol."]
[]
["APCr is sampled quarterly as per permit condition 3.5.1c and table 4.5"]
[]
[]
["Commentary on any specific events"]
["Date & Event",null,"Description"]
[]
[]
[]
[]
[]
[]
[]
[]
[]
[]
[]
[]
["Residue Quality Monitoring Results"]
["Parameter (unit) ",null,"Limit","Normal Operation "]
[null,null,null,"Bottom ash  ",null,"APC Residues"]
["Loss on Ignition (average %)",null,"-"]
["Total Organic Carbon (average %)",null,"<3%",1.43]
["No. of Assessments Undertaken",null,"---","4 Permit compliance samples\n24 ESA hazard assessment - (including 4 above).",null,4]
["No. of Hazardous Results",null,"---",0]
[]
["Comments :"]
["All IBA remained non-hazardous as per the ESA protocol within 2020.\nTOC Value above is average of the four quarters of samples on each line (8 samples)."]

{"sheet":"Water","index":11,"n_rows":24,"n_cols":10,"rows_kept":24,"cut":false,"hidden":false,"merged":[[29,0,29,2],[29,3,29,5],[26,0,26,2],[26,3,26,5],[27,0,27,2],[27,3,27,5],[28,0,28,2],[28,3,28,5],[23,0,23,2],[23,3,23,5],[24,0,24,2],[24,3,24,5],[25,0,25,2],[25,3,25,5],[21,0,21,9],[22,0,22,2],[22,3,22,5],[14,0,15,1],[14,2,15,9],[16,0,17,1],[16,2,17,9],[18,0,19,1],[18,2,19,9],[5,0,6,9],[7,0,8,9],[9,0,10,9],[12,0,12,9],[13,0,13,1],[13,2,13,9]]}
[{"$f":"+'Cover Page'!$B$29","v":"Annual Performance Report 2020"},null,null,null,{"$f":"+'Cover Page'!$B$33","v":"Ardley Energy Recovery Facility"}]
[]
["Emissions to Water"]
[]
["Summary of monitoring undertaken and compliance"]
["Permit Condition 3.5.1(a) and Table S4.2 requires Viridor to ensure sample point W1\nis free of oil and grease."]
[]
["Sample point W1 has remained free of oil and grease. No Permit limit exceedances were recorded for W1 during the review period for emissions to water."]
[]
[]
[]
[]
["Commentary on any specific events"]
["Date & Event",null,"Description"]
[]
[]
[]
[]
[]
[]
[]
["Emissions to Water / Sewer"]
["Parameter",null,null,"Monitoring Frequency",null,null,"Limit","Target","Max.","Average"]
["Oil & Grease",null,null,"Not set",null,null,"free of oil and grease","-","-","-"]

{"sheet":"Air (periodic)","index":12,"n_rows":38,"n_cols":13,"rows_kept":38,"cut":false,"hidden":false,"merged":[[37,0,38,9],[19,3,19,4],[25,3,25,4],[31,3,31,4],[20,3,20,4],[21,3,21,4],[22,3,22,4],[29,3,29,4],[23,3,23,4],[24,3,24,4],[26,3,26,4],[23,0,23,1],[24,0,24,1],[36,0,36,9],[32,3,32,4],[33,3,33,4],[28,3,28,4],[34,3,34,4],[17,0,17,1],[18,0,18,1],[19,0,19,1],[20,0,20,1],[21,0,21,1],[17,3,17,4],[18,3,18,4],[31,0,31,1],[32,0,32,1],[33,0,33,1],[34,0,34,1],[22,0,22,1],[30,3,30,4],[16,2,35,2],[35,0,35,1],[25,0,25,1],[26,0,26,1],[27,0,27,1],[28,0,28,1],[29,0,29,1],[30,0,30,1],[14,0,14,1],[15,0,15,1],[16,0,16,1],[13,0,13,1],[12,3,12,4],[13,3,13,4],[13,2,15,2],[14,3,14,4],[15,3,15,4],[16,3,16,4],[5,12,8,15],[9,12,12,15],[12,0,12,1],[9,2,10,2],[11,0,11,1],[11,2,12,2],[11,3,11,4],[8,0,8,9],[5,0,6,9],[10,7,35,7],[9,3,10,4],[9,0,10,1],[9,5,9,6],[9,8,9,9],[35,3,35,4],[27,3,27,4]]}
[{"$f":"+'Cover Page'!$B$29","v":"Annual Performance Report 2020"},null,null,null,{"$f":"+'Cover Page'!$B$33","v":"Ardley Energy Recovery Facility"}]
[]
["Emissions to Air (periodically monitored)"]
[]
["Summary of monitoring undertaken, standards used and compliance",null,null,null,null,null,null,null,null,null,null,null,"Notes:"]
["All analysis below completed by permit specified BS EN method other than nitrous oxide which was completed by allowed alternative method M22. Monitoring was undertaken in April and November 2020. ",null,null,null,null,null,null,null,null,null,null,null,"Template may require adjustment for any bespoke monitoring requirements of permit. "]
[]
[]
["Results of emissions to air that are periodically monitored"]
["Substance",null,"Ref. Period","Emission Limit Value",null,"Average H1",null,null,"Average H2",null,null,null,"User to add additional tables as necessary, depending on whether quarterly or bi-annual reporting is required for the compliance year"]
[null,null,null,null,null,"L1","L2 ",null,"L1","L2 "]
["Nitrous Oxide ",null,"1hr","-",null,30.2,22.6,null,21.5,21.48]
["Hydrogen fluoride",null,null,"1 mg/m3",null,"<0.03","<0.03",null,"<0.027","<0.030"]
["Cd and Th and their compounds",null," \nMaximum 8 hours ","0.05 mg/m3",null,"<0.001","<0.001",null,1.5E-3,"<0.0010"]
["Hg and its compounds",null,null,"0.05 mg/m3",null,8.9999999999999993E-3,1.78E-2,null,2.3E-3,3.7000000000000002E-3]
["Sb, As, Pb, Cr, Co, Cu, Mn, Ni, V and their compounds",null,null,"0.5 mg/m3",null,1.0999999999999999E-2,1.0500000000000001E-2,null,4.5999999999999999E-2,0.21]
["Dioxins & Furans (I-TEQ)",null,"6-8hrs","0.1 ng/m3",null,1.4120000000000001E-2,3.0000000000000001E-3,null,1.9E-3,2.3999999999999998E-3]
["PCBs (WHO-TEQ Humans / Mammals)",null,null,"None set ng/m3",null,1.1119999999999999E-3,1.7699999999999999E-4,null,2.5000000000000001E-4,3.3E-4]
["PCBs (WHO-TEQ Fish)",null,null,"None set ng/m3",null,5.3000000000000001E-5,1.0000000000000001E-5,null,1.2999999999999999E-5,1.5E-5]
["PCBs (WHO-TEQ Birds)",null,null,"None set ng/m3",null,2.2539999999999999E-3,6.6299999999999996E-4,null,7.1000000000000002E-4,6.4999999999999997E-4]
["Anthanthrene",null,null,"None set µg/m3",null,"<0.00056","<0.0008",null,"<0.00090","<0.00059"]
["Benzo(a)anthracene",null,null,"None set µg/m3",null,"<0.00056",8.0000000000000004E-4,null,"<0.00090","<0.00059"]
["Benzo(a)pyrene",null,null,"None set µg/m3",null,"<0.00056","<0.0008",null,"<0.00090","<0.00059"]
["Benzo(b)fluoranthene",null,null,"None set µg/m3",null,"<0.00056","<0.0008",null,"<0.00090","<0.00059"]
["Benzo(b)naptho(2,1-d) thiophene",null,null,"None set µg/m3",null,1.4599999999999999E-3,4.4999999999999997E-3,null,"<0.00090","<0.00059"]
["Benzo(c)phenanthrene",null,null,"None set µg/m3",null,"<0.00056","<0.0008",null,"<0.00090","<0.00059"]
["Benzo(ghi)perylene",null,null,"None set µg/m3",null,6.7000000000000002E-4,"<0.0008",null,"<0.00090","<0.00059"]
["Benzo(k)fluoranthene",null,null,"None set µg/m3",null,"<0.00056","<0.0008",null,"<0.00090","<0.00059"]
["Cholanthrene",null,null,"None set µg/m3",null,"<0.00056","<0.0008",null,"<0.00090","<0.00059"]
["Chrysene",null,null,"None set µg/m3",null,1.4599999999999999E-3,2.2000000000000001E-3,null,"<0.00090","<0.00059"]
["Cyclopenta(cd)pyrene",null,null,"None set µg/m3",null,"<0.00056","<0.0008",null,"<0.00090","<0.00059"]
["Dibenzo(ai)pyrene",null,null,"None set µg/m3",null,"<0.00056","<0.0008",null,"<0.00090","<0.00059"]
["Dibenzo(ah)anthracene",null,null,"None set µg/m3",null,"<0.00056","<0.0008",null,"<0.00090","<0.00059"]
["Fluoranthene",null,null,"None set µg/m3",null,1.651E-2,1.2E-2,null,8.3999999999999995E-3,6.6E-3]
["Indeno(123-cd) pyrene",null,null,"None set µg/m3",null,"<0.00056","<0.0008",null,"<0.00090","<0.00059"]
["Naphthalene",null,null,"None set µg/m3",null,0.247,0.34239999999999998,null,0.44,0.4]
["Comments :"]
["All results returned within limits. "]

{"sheet":"Air (CEMS)","index":13,"n_rows":27,"n_cols":16,"rows_kept":27,"cut":false,"hidden":false,"merged":[[21,3,21,4],[22,3,22,4],[23,3,23,4],[24,3,24,4],[16,3,16,4],[17,3,17,4],[18,3,18,4],[19,3,19,4],[20,3,20,4],[21,5,21,6],[22,5,22,6],[23,5,23,6],[24,5,24,6],[16,5,16,6],[17,5,17,6],[18,5,18,6],[19,5,19,6],[20,5,20,6],[12,3,12,4],[12,5,12,6],[13,5,13,6],[14,5,14,6],[15,5,15,6],[13,3,13,4],[14,3,14,4],[15,3,15,4],[23,7,23,8],[24,7,24,8],[16,9,16,10],[17,9,17,10],[18,9,18,10],[19,9,19,10],[20,9,20,10],[21,9,21,10],[22,9,22,10],[23,9,23,10],[24,9,24,10],[18,7,18,8],[19,7,19,8],[20,7,20,8],[21,7,21,8],[22,7,22,8],[13,9,13,10],[14,9,14,10],[15,9,15,10],[16,7,16,8],[17,7,17,8],[25,0,25,10],[27,0,28,10],[13,0,14,0],[5,0,6,10],[7,0,8,10],[10,0,10,10],[11,0,12,0],[11,2,12,2],[11,1,12,1],[11,7,11,10],[11,3,11,6],[12,9,12,10],[12,7,12,8],[13,7,13,8],[14,7,14,8],[15,7,15,8]]}
[{"$f":"+'Cover Page'!$B$29","v":"Annual Performance Report 2020"}]
[]
["Emissions to Air (continuously monitored)"]
[null,null,null,null,null,null,null,null,null,null,null,null,null,null,null,"Notes:"]
["Summary of monitoring undertaken, standards used and compliance",null,null,null,null,null,null,null,null,null,null,null,null,null,null,"Template may require adjustment for any bespoke monitoring requirements of permit"]
["The monitoring standards utilised during this testing conformed to those stipulated within Table S4.1 of the Permit. ",null,null,null,null,null,null,null,null,null,null,null,null,null,null,"Report to 2 decimal places, i.e. xx.xx%"]
[]
["All results below monitored by CEMs."]
[]
[]
["Results of emissions to air that are continuously monitored (maximum and average values for each line)"]
["Substance","Reference Period","Emission Limit Value","A1",null,null,null,"A2"]
[null,null,null,"Max",null,"Average",null,"Max",null,"Average"]
["Oxides of nitrogen","Daily mean","200 mg/m3 ",{"$f":"NOx!O19","v":183},null,{"$f":"NOx!N19","v":176.54206989247314},null,{"$f":"NOx!O34","v":182},null,{"$f":"NOx!N34","v":173.14917946748594}]
[null,"½ hourly mean","400 mg/m3 ",{"$f":"NOx!M19","v":327},null,{"$f":"NOx!L19","v":176.12490939864594},null,{"$f":"NOx!M34","v":269},null,{"$f":"NOx!L34","v":174.92196236559138}]
["Particulates","Daily mean","10 mg/m3",{"$f":"Particulates!O19","v":1},null,{"$f":"Particulates!N19","v":0.98333333333333339},null,{"$f":"Particulates!O34","v":2},null,{"$f":"Particulates!N34","v":0.93989157706093185}]
[null,"½ hourly mean","30 mg/m3 ",{"$f":"Particulates!M19","v":3},null,{"$f":"Particulates!L190","v":0},null,{"$f":"Particulates!M34","v":4},null,{"$f":"Particulates!L34","v":1.0088978494623655}]
["Total Organic Carbon ","Daily mean","10 mg/m3 ",{"$f":"TOC!O19","v":1},null,{"$f":"TOC!N19","v":0.18889784946236557},null,{"$f":"TOC!O34","v":2},null,{"$f":"TOC!N34","v":0.4905837173579109}]
[null,"½ hourly mean","20 mg/m3 ",{"$f":"TOC!M19","v":10},null,{"$f":"TOC!L19","v":0.20757068896853845},null,{"$f":"TOC!M34","v":20},null,{"$f":"TOC!L34","v":0.53623995519713252}]
["Hydrogen chloride ","Daily mean","10 mg/m3 ",{"$f":"HCl!O19","v":8},null,{"$f":"HCl!N19","v":5.4372410394265236},null,{"$f":"HCl!O34","v":7},null,{"$f":"HCl!N34","v":5.5553040194572461}]
[null,"½ hourly mean","60 mg/m3 ",{"$f":"HCl!M19","v":42},null,{"$f":"HCl!L19","v":5.4171523757007636},null,{"$f":"HCl!M34","v":29},null,{"$f":"HCl!L34","v":5.524870071684588}]
["Sulphur dioxide","Daily mean","50 mg/m3 ",{"$f":"'SO2'!O19","v":30},null,{"$f":"'SO2'!N19","v":12.298440860215052},null,{"$f":"'SO2'!O34","v":30},null,{"$f":"'SO2'!N34","v":16.240970942140297}]
[null,"½ hourly mean","200 mg/m3 ",{"$f":"'SO2'!M19","v":146},null,{"$f":"'SO2'!L19","v":12.471618876941458},null,{"$f":"'SO2'!M34","v":134},null,{"$f":"'SO2'!L34","v":16.103732078853046}]
["Carbon monoxide ","Daily mean","50 mg/m3 ",{"$f":"'CO 95% 10 min'!Q19","v":32},null,{"$f":"'CO 95% 10 min'!P19","v":1.3269666666666666},null,{"$f":"'CO 95% 10 min'!Q34","v":34},null,{"$f":"'CO 95% 10 min'!P34","v":1.9054166666666668}]
[null,"95%ile 10-min avg ","150 mg/m3 ",{"$f":"'CO 95% 10 min'!M19","v":13.5},null,{"$f":"'CO 95% 10 min'!N19","v":1.3358858333333334},null,{"$f":"'CO 95% 10 min'!M34","v":13.98},null,{"$f":"'CO 95% 10 min'!N34","v":1.6477006333333333}]
[]
["Comments :"]

{"sheet":"HCl","index":14,"n_rows":48,"n_cols":17,"rows_kept":48,"cut":false,"hidden":false,"merged":[[21,9,33,9],[66,9,78,9],[51,9,63,9],[47,0,47,6],[48,0,51,6],[36,9,48,9],[3,16,7,18],[9,16,11,18],[12,16,15,18],[4,9,4,14],[4,1,4,3],[4,4,4,6],[6,9,18,9]]}
[{"$f":"+'Cover Page'!$B$29","v":"Annual Performance Report 2020"},null,null,null,{"$f":"+'Cover Page'!$B$33","v":"Ardley Energy Recovery Facility"}]
[]
["Monitoring of Hydrogen Chloride emissions",null,null,"Whole Installation",null,null,null,null,null,{"$f":"+A3","v":"Monitoring of Hydrogen Chloride emissions"},null,null,null,"Per Combustion Line",null,null,"Notes:"]
[null,null,null,null,null,null,null,null,null,null,null,null,null,null,null,null,"User to add logic to complete Whole installation, Table A5:G18. From the data in Per Combustion Line, Table J6:O79, subject to No. of lines installed"]
["mg/Nm3","1/2 Hourly Reference Periods",null,null,"Daily Reference Periods"]
[{"$f":"+'Cover Page'!C39","v":2020},"1/2 hourly HCl ELV","Monthly 1/2 hourly mean","Highest 1/2 hourly maximum","Daily HCl ELV","Monthly daily mean","Highest daily maximum",null,null,{"$f":"+A6","v":2020},"mg/Nm3","Monthly 1/2 hourly mean","Monthly 1/2 hourly maximum","Monthly daily mean","Monthly daily maximum"]
["Jan",60,{"$f":"AVERAGE(L7,L22)","v":5.661290322580645},{"$f":"MAX(M7,M22)","v":31},10,{"$f":"AVERAGE(N7,N22)","v":5.7166666666666668},{"$f":"MAX(O7,O22)","v":6},null,null,"A1","Jan",5.4516129032258061,31,5.5333333333333332,6]
["Feb",60,{"$f":"AVERAGE(L8,L23)","v":5.8413461538461533},{"$f":"MAX(M8,M23)","v":15},10,{"$f":"AVERAGE(N8,N23)","v":5.8958333333333339},{"$f":"MAX(O8,O23)","v":7},null,null,null,"Feb",5.8076923076923075,14,5.916666666666667,7]
["Mar",60,5.935483870967742,15,10,5.9349462365591403,8,null,null,null,"Mar",5.967741935483871,15,5.9666666666666668,8,null,"Whole Installation table A5:G18:"]
["Apr",60,5.8100000000000005,16,10,5.85,7,null,null,null,"Apr",5.75,16,5.83,6,null,"Mean: for 1/2 hourly and daily periods calculate mean of values across all operational combustion lines for the month"]
["May",60,5.9450000000000003,42,10,5.98,8,null,null,null,"May",6.2,42,6.2,8]
["Jun",60,5.7249999999999996,23,10,5.77,7,null,null,null,"Jun",5.9,23,5.9,7]
["Jul",60,5.887096774193548,27,10,5.8849462365591396,7,null,null,null,"Jul",{"$f":"AVERAGE('[1]EA Monthly Report - 05 October '!$E$668:$AI$668)","v":5.903225806451613},27,{"$f":"AVERAGE('[1]EA Monthly Report - 05 October '!$E$673:$AI$673)","v":5.903225806451613},6,null,"Maximum: for 1/2 hourly and daily periods use the highest value across all operational combustion lines for the month"]
["Aug",60,5.3858064516129032,17,10,5.350806451612903,6,null,null,null,"Aug",{"$f":"AVERAGE('[1]EA Monthly Report - 05 October '!$E$688:$AI$688)","v":5.32},17,{"$f":"AVERAGE('[1]EA Monthly Report - 05 October '!$E$693:$AI$693)","v":5.25},6]
["Sep",60,5.5611111111111109,20,10,5.6635714285714283,6,null,null,null,"Sep",{"$f":"AVERAGE('[1]EA Monthly Report - 05 October '!$E$708:$AH$708)","v":5.5555555555555554},20,{"$f":"AVERAGE('[1]EA Monthly Report - 05 October '!$E$713:$AH$713)","v":5.72},6]
["Oct",60,4.0250000000000004,20,10,3.81,6,null,null,null,"Oct",3.55,20,3.2,6]
["Nov",60,4.42,29,10,4.5299999999999994,6,null,null,null,"Nov",3.95,14,4.0599999999999996,6]
["Dec",60,{"$f":"AVERAGE(L18,L33)","v":5.4550000000000001},18,10,5.5685000000000002,6,null,null,null,"Dec",5.65,18,5.7670000000000003,6]
[null,null,null,null,null,null,null,null,null,null,"Annual",{"$f":"AVERAGE(L7:L18)","v":5.4171523757007636},{"$f":"MAX(M7:M18)","v":42},{"$f":"AVERAGE(N7:N18)","v":5.4372410394265236},{"$f":"MAX(O7:O18)","v":8}]
[]
[null,null,null,null,null,null,null,null,null,{"$f":"+A6","v":2020},"mg/Nm3","Monthly 1/2 hourly mean","Monthly 1/2 hourly maximum","Monthly daily mean","Monthly daily maximum"]
[null,null,null,null,null,null,null,null,null,"A2","Jan",5.870967741935484,23,5.9,6]
[null,null,null,null,null,null,null,null,null,null,"Feb",5.875,15,5.875,7]
[null,null,null,null,null,null,null,null,null,null,"Mar",5.903225806451613,15,5.903225806451613,7]
[null,null,null,null,null,null,null,null,null,null,"Apr",5.87,16,5.87,7]
[null,null,null,null,null,null,null,null,null,null,"May",5.69,20,5.76,6]
[null,null,null,null,null,null,null,null,null,null,"Jun",5.55,14,5.64,6]
[null,null,null,null,null,null,null,null,null,null,"Jul",{"$f":"AVERAGE('[1]EA Monthly Report - 05 October '!$E$308:$AI$308)","v":5.870967741935484},14,{"$f":"AVERAGE('[1]EA Monthly Report - 05 October '!$E$313:$AI$313)","v":5.8666666666666663},7]
[null,null,null,null,null,null,null,null,null,null,"Aug",{"$f":"AVERAGE('[1]EA Monthly Report - 05 October '!$E$328:$AI$328)","v":5.4516129032258061},15,{"$f":"AVERAGE('[1]EA Monthly Report - 05 October '!$E$333:$AI$333)","v":5.4516129032258061},6]
[null,null,null,null,null,null,null,null,null,null,"Sep",{"$f":"AVERAGE('[1]EA Monthly Report - 05 October '!$E$348:$AH$348)","v":5.5666666666666664},17,{"$f":"AVERAGE('[1]EA Monthly Report - 05 October '!$E$353:$AH$353)","v":5.6071428571428568},6]
[null,null,null,null,null,null,null,null,null,null,"Oct",4.5,10,4.42,6]
[null,null,null,null,null,null,null,null,null,null,"Nov",4.8899999999999997,29,5,6]
[null,null,null,null,null,null,null,null,null,null,"Dec",5.26,17,5.37,6]
[null,null,null,null,null,null,null,null,null,null,"Annual",{"$f":"AVERAGE(L22:L33)","v":5.524870071684588},{"$f":"MAX(M22:M33)","v":29},{"$f":"AVERAGE(N22:N33)","v":5.5553040194572461},{"$f":"MAX(O22:O33)","v":7}]
[]
[]
[]
[]
[]
[]
[]
[]
[]
[]
[]
[]
[]
["Comments :"]

{"sheet":"SO2","index":15,"n_rows":48,"n_cols":17,"rows_kept":48,"cut":false,"hidden":false,"merged":[[3,16,7,18],[9,16,11,18],[12,16,15,18],[66,9,78,9],[4,1,4,3],[4,4,4,6],[4,9,4,14],[6,9,18,9],[21,9,33,9],[36,9,48,9],[47,0,47,6],[48,0,51,6],[51,9,63,9]]}
[{"$f":"+'Cover Page'!$B$29","v":"Annual Performance Report 2020"},null,null,null,{"$f":"+'Cover Page'!$B$33","v":"Ardley Energy Recovery Facility"}]
[]
["Monitoring of Sulphur dioxide emissions",null,null,"Whole Installation",null,null,null,null,null,{"$f":"+A3","v":"Monitoring of Sulphur dioxide emissions"},null,null,null,"Per Combustion Line",null,null,"Notes:"]
[null,null,null,null,null,null,null,null,null,null,null,null,null,null,null,null,"User to add logic to complete Whole installation, Table A5:G18. From the data in Per Combustion Line, Table J6:O79, subject to No. of lines installed"]
["mg/Nm3","1/2 Hourly Reference Periods",null,null,"Daily Reference Periods"]
[{"$f":"+'Cover Page'!C39","v":2020},"1/2 hourly SO2 ELV","Monthly 1/2 hourly mean","Highest 1/2 hourly maximum","Daily SO2 ELV","Monthly daily mean","Highest daily maximum",null,null,{"$f":"+A6","v":2020},"mg/Nm3","Monthly 1/2 hourly mean","Monthly 1/2 hourly maximum","Monthly daily mean","Monthly daily maximum"]
["Jan",200,{"$f":"AVERAGE(L7,L22)","v":10},{"$f":"MAX(M7,M22)","v":31},50,{"$f":"AVERAGE(N7,N22)","v":10.1},{"$f":"MAX(O7,O22)","v":6},null,null,"A1","Jan",8.9677419354838701,31,9.1,6]
["Feb",200,{"$f":"AVERAGE(L8,L23)","v":12.395833333333332},{"$f":"MAX(M8,M23)","v":15},50,{"$f":"AVERAGE(N8,N23)","v":12.645833333333332},{"$f":"MAX(O8,O23)","v":7},null,null,null,"Feb",12,14,12.5,7]
["Mar",200,11.951612903225808,15,50,11.924193548387098,8,null,null,null,"Mar",11.35483870967742,15,11.3,8,null,"Whole Installation table A5:G18:"]
["Apr",200,15.899999999999999,78,50,15.600000000000001,22,null,null,null,"Apr",17.2,75,16.600000000000001,19,null,"Mean: for 1/2 hourly and daily periods calculate mean of values across all operational combustion lines for the month"]
["May",200,15.95,85,50,15.95,22,null,null,null,"May",15,85,15,20]
["Jun",200,14.84,64,50,14.969999999999999,24,null,null,null,"Jun",10.9,60,10.9,17]
["Jul",200,{"$f":"AVERAGE(L28,13)","v":15.82258064516129},{"$f":"MAX(M28,M13)","v":70},50,{"$f":"AVERAGE(N28,N13)","v":14.413978494623656},{"$f":"AVERAGE(O28,O13)","v":19.5},null,null,null,"Jul",{"$f":"AVERAGE('[1]EA Monthly Report - 05 October '!$E$548:$AI$548)","v":10.161290322580646},70,{"$f":"AVERAGE('[1]EA Monthly Report - 05 October '!$E$553:$AI$553)","v":10.161290322580646},14,null,"Maximum: for 1/2 hourly and daily periods use the highest value across all operational combustion lines for the month"]
["Aug",200,{"$f":"AVERAGE(L29,13)","v":14.790322580645162},{"$f":"MAX(M29,M14)","v":101},50,{"$f":"AVERAGE(N29,N14)","v":14.440322580645162},{"$f":"MAX(O29,14)","v":22},null,null,null,"Aug",{"$f":"AVERAGE('[1]EA Monthly Report - 05 October '!$E$568:$AI$568)","v":13.12},101,{"$f":"AVERAGE('[1]EA Monthly Report - 05 October '!$E$573:$AI$573)","v":12.3},25]
["Sep",200,14.183333333333334,128,50,13.292142857142856,{"$f":"MAX(O30,14)","v":19},null,null,null,"Sep",{"$f":"AVERAGE('[1]EA Monthly Report - 05 October '!$E$588:$AH$588)","v":12.555555555555555},128,{"$f":"AVERAGE('[1]EA Monthly Report - 05 October '!$E$593:$AH$593)","v":11.12},27]
["Oct",200,12.95,146,50,12.8,30,null,null,null,"Oct",10.9,146,10.6,30]
["Nov",200,15.75,134,50,16.2,30,null,null,null,"Nov",10.5,83,10.9,28]
["Dec",200,18.5,116,50,18.899999999999999,29,null,null,null,"Dec",17,116,17.100000000000001,25]
[null,null,null,null,null,null,null,null,null,null,"Annual",{"$f":"AVERAGE(L7:L18)","v":12.471618876941458},{"$f":"MAX(M7:M18)","v":146},{"$f":"AVERAGE(N7:N18)","v":12.298440860215052},{"$f":"MAX(O7:O18)","v":30}]
[]
[null,null,null,null,null,null,null,null,null,{"$f":"+A6","v":2020},"mg/Nm3","Monthly 1/2 hourly mean","Monthly 1/2 hourly maximum","Monthly daily mean","Monthly daily maximum"]
[null,null,null,null,null,null,null,null,null,"A2","Jan",11.03225806451613,23,11.1,6]
[null,null,null,null,null,null,null,null,null,null,"Feb",12.791666666666666,15,12.791666666666666,7]
[null,null,null,null,null,null,null,null,null,null,"Mar",12.548387096774194,15,12.548387096774194,7]
[null,null,null,null,null,null,null,null,null,null,"Apr",14.6,78,14.6,22]
[null,null,null,null,null,null,null,null,null,null,"May",16.899999999999999,67,16.899999999999999,22]
[null,null,null,null,null,null,null,null,null,null,"Jun",18.78,64,19.04,24]
[null,null,null,null,null,null,null,null,null,null,"Jul",{"$f":"AVERAGE('[1]EA Monthly Report - 05 October '!$E$188:$AI$188)","v":18.64516129032258},52,{"$f":"AVERAGE('[1]EA Monthly Report - 05 October '!$E$193:$AI$193)","v":18.666666666666668},25]
[null,null,null,null,null,null,null,null,null,null,"Aug",{"$f":"AVERAGE('[1]EA Monthly Report - 05 October '!$E$208:$AI$208)","v":16.580645161290324},70,{"$f":"AVERAGE('[1]EA Monthly Report - 05 October '!$E$213:$AI$213)","v":16.580645161290324},22]
[null,null,null,null,null,null,null,null,null,null,"Sep",{"$f":"AVERAGE('[1]EA Monthly Report - 05 October '!$E$228:$AH$228)","v":15.366666666666667},120,{"$f":"AVERAGE('[1]EA Monthly Report - 05 October '!$E$233:$AH$233)","v":15.464285714285714},19]
[null,null,null,null,null,null,null,null,null,null,"Oct",15,40,15,24]
[null,null,null,null,null,null,null,null,null,null,"Nov",21,134,21.5,30]
[null,null,null,null,null,null,null,null,null,null,"Dec",20,88,20.7,29]
[null,null,null,null,null,null,null,null,null,null,"Annual",{"$f":"AVERAGE(L22:L33)","v":16.103732078853046},{"$f":"MAX(M22:M33)","v":134},{"$f":"AVERAGE(N22:N33)","v":16.240970942140297},{"$f":"MAX(O22:O33)","v":30}]
[]
[]
[]
[]
[]
[]
[]
[]
[]
[]
[]
[]
[]
["Comments :"]

{"sheet":"NOx","index":16,"n_rows":48,"n_cols":17,"rows_kept":48,"cut":false,"hidden":false,"merged":[[3,16,7,18],[9,16,11,18],[12,16,15,18],[66,9,78,9],[4,1,4,3],[4,4,4,6],[4,9,4,14],[6,9,18,9],[21,9,33,9],[36,9,48,9],[47,0,47,6],[48,0,51,6],[51,9,63,9]]}
[{"$f":"+'Cover Page'!$B$29","v":"Annual Performance Report 2020"},null,null,null,{"$f":"+'Cover Page'!$B$33","v":"Ardley Energy Recovery Facility"}]
[]
["Monitoring of Oxides of Nitrogen emissions",null,null,"Whole Installation",null,null,null,null,null,{"$f":"+A3","v":"Monitoring of Oxides of Nitrogen emissions"},null,null,null,"Per Combustion Line",null,null,"Notes:"]
[null,null,null,null,null,null,null,null,null,null,null,null,null,null,null,null,"User to add logic to complete Whole installation, Table A5:G18. From the data in Per Combustion Line, Table J6:O79, subject to No. of lines installed"]
["mg/Nm3","1/2 Hourly Reference Periods",null,null,"Daily Reference Periods"]
[{"$f":"+'Cover Page'!C39","v":2020},"1/2 hourly NOx ELV","Monthly 1/2 hourly mean","Highest 1/2 hourly maximum","Daily NOx ELV","Monthly daily mean","Highest daily maximum",null,null,{"$f":"+A6","v":2020},"mg/Nm3","Monthly 1/2 hourly mean","Monthly 1/2 hourly maximum","Monthly daily mean","Monthly daily maximum"]
["Jan",400,{"$f":"AVERAGE(L7,L22)","v":174.05},{"$f":"MAX(M7,M22)","v":225},200,{"$f":"AVERAGE(N7,N22)","v":174},{"$f":"MAX(O7,O22)","v":177},null,null,"A1","Jan",175.9,225,175.9,177]
["Feb",400,{"$f":"AVERAGE(L8,L23)","v":171.55},{"$f":"MAX(M8,M23)","v":255},200,{"$f":"AVERAGE(N8,N23)","v":172.3},{"$f":"MAX(O8,O23)","v":183},null,null,null,"Feb",175.1,255,176.6,183]
["Mar",400,172.85,306,200,172.85,178,null,null,null,"Mar",176.2,306,176.2,178,null,"Whole Installation table A5:G18:"]
["Apr",400,180.035,228,200,174.315,177,null,null,null,"Apr",176.1,213,176.2,177,null,"Mean: for 1/2 hourly and daily periods calculate mean of values across all operational combustion lines for the month"]
["May",400,174.14999999999998,242,200,174.32,180,null,null,null,"May",176.6,242,176.6,180]
["Jun",400,175,257,200,174.995,179,null,null,null,"Jun",176.1,257,176.03,178]
["Jul",400,175.91935483870967,327,200,175.99408602150538,183,null,null,null,"Jul",{"$f":"AVERAGE('[1]EA Monthly Report - 05 October '!$E$488:$AI$488)","v":177.35483870967741},327,{"$f":"AVERAGE('[1]EA Monthly Report - 05 October '!$E$493:$AI$493)","v":177.35483870967741},183,null,"Maximum: for 1/2 hourly and daily periods use the highest value across all operational combustion lines for the month"]
["Aug",400,176.27483870967743,259,200,176.22983870967744,180,null,null,null,"Aug",{"$f":"AVERAGE('[1]EA Monthly Report - 05 October '!$E$508:$AI$508)","v":176.84},221,{"$f":"AVERAGE('[1]EA Monthly Report - 05 October '!$E$513:$AI$513)","v":176.75},180]
["Sep",400,181.83703703703702,223,200,175.88357142857143,181,null,null,null,"Sep",{"$f":"AVERAGE('[1]EA Monthly Report - 05 October '!$E$528:$AH$528)","v":176.07407407407408},223,{"$f":"AVERAGE('[1]EA Monthly Report - 05 October '!$E$533:$AH$533)","v":176.16},181]
["Oct",400,175.3,272,200,176.57999999999998,182,null,null,null,"Oct",176.6,272,177.56,182]
["Nov",400,175.315,308,200,176.82999999999998,182,null,null,null,"Nov",174.63,308,177.12,182]
["Dec",400,174,286,200,173.85,180,null,null,null,"Dec",176,286,176.03,179]
[null,null,null,null,null,null,null,null,null,null,"Annual",{"$f":"AVERAGE(L7:L18)","v":176.12490939864594},{"$f":"MAX(M7:M18)","v":327},{"$f":"AVERAGE(N7:N18)","v":176.54206989247314},{"$f":"MAX(O7:O18)","v":183}]
[]
[null,null,null,null,null,null,null,null,null,{"$f":"+A6","v":2020},"mg/Nm3","Monthly 1/2 hourly mean","Monthly 1/2 hourly maximum","Monthly daily mean","Monthly daily maximum"]
[null,null,null,null,null,null,null,null,null,"A2","Jan",172.2,201,172.1,176]
[null,null,null,null,null,null,null,null,null,null,"Feb",168,224,168,173]
[null,null,null,null,null,null,null,null,null,null,"Mar",169.5,217,169.5,177]
[null,null,null,null,null,null,null,null,null,null,"Apr",183.97,228,172.43,176]
[null,null,null,null,null,null,null,null,null,null,"May",171.7,212,172.04,176]
[null,null,null,null,null,null,null,null,null,null,"Jun",173.9,221,173.96,179]
[null,null,null,null,null,null,null,null,null,null,"Jul",{"$f":"AVERAGE('[1]EA Monthly Report - 05 October '!$E$128:$AI$128)","v":174.48387096774192},218,{"$f":"AVERAGE('[1]EA Monthly Report - 05 October '!$E$133:$AI$133)","v":174.63333333333333},177]
[null,null,null,null,null,null,null,null,null,null,"Aug",{"$f":"AVERAGE('[1]EA Monthly Report - 05 October '!$E$148:$AI$148)","v":175.70967741935485},259,{"$f":"AVERAGE('[1]EA Monthly Report - 05 October '!$E$153:$AI$153)","v":175.70967741935485},177]
[null,null,null,null,null,null,null,null,null,null,"Sep",{"$f":"AVERAGE('[1]EA Monthly Report - 05 October '!$E$167:$AH$167)","v":187.6},209,{"$f":"AVERAGE('[1]EA Monthly Report - 05 October '!$E$173:$AH$173)","v":175.60714285714286},176]
[null,null,null,null,null,null,null,null,null,null,"Oct",174,197,175.6,178]
[null,null,null,null,null,null,null,null,null,null,"Nov",176,243,176.54,182]
[null,null,null,null,null,null,null,null,null,null,"Dec",172,269,171.67,180]
[null,null,null,null,null,null,null,null,null,null,"Annual",{"$f":"AVERAGE(L22:L33)","v":174.92196236559138},{"$f":"MAX(M22:M33)","v":269},{"$f":"AVERAGE(N22:N33)","v":173.14917946748594},{"$f":"MAX(O22:O33)","v":182}]
[]
[]
[]
[]
[]
[]
[]
[]
[]
[]
[]
[]
[]
["Comments :"]

{"sheet":"TOC","index":17,"n_rows":49,"n_cols":17,"rows_kept":49,"cut":false,"hidden":false,"merged":[[3,16,7,18],[9,16,11,18],[12,16,15,18],[66,9,78,9],[4,1,4,3],[4,4,4,6],[4,9,4,14],[6,9,18,9],[21,9,33,9],[36,9,48,9],[47,0,47,6],[48,0,51,6],[51,9,63,9]]}
[{"$f":"+'Cover Page'!$B$29","v":"Annual Performance Report 2020"},null,null,null,{"$f":"+'Cover Page'!$B$33","v":"Ardley Energy Recovery Facility"}]
[]
["Monitoring of Total organic carbon emissions",null,null,"Whole Installation",null,null,null,null,null,{"$f":"+A3","v":"Monitoring of Total organic carbon emissions"},null,null,null,"Per Combustion Line",null,null,"Notes:"]
[null,null,null,null,null,null,null,null,null,null,null,null,null,null,null,null,"User to add logic to complete Whole installation, Table A5:G18. From the data in Per Combustion Line, Table J6:O79, subject to No. of lines installed"]
["mg/Nm3","1/2 Hourly Reference Periods",null,null,"Daily Reference Periods"]
[{"$f":"+'Cover Page'!C39","v":2020},"1/2 hourly TOC ELV","Monthly 1/2 hourly mean","Highest 1/2 hourly maximum","Daily TOC ELV","Monthly daily mean","Highest daily maximum",null,null,{"$f":"+A6","v":2020},"mg/Nm3","Monthly 1/2 hourly mean","Monthly 1/2 hourly maximum","Monthly daily mean","Monthly daily maximum"]
["Jan",20,{"$f":"AVERAGE(L7,L22)","v":0.66},{"$f":"MAX(M7,M22)","v":4},10,{"$f":"AVERAGE(N7,N22)","v":0.66500000000000004},{"$f":"MAX(O7,O22)","v":2},null,null,"A1","Jan",0.28999999999999998,4,0.3,1]
["Feb",20,{"$f":"AVERAGE(L8,L23)","v":0.65500000000000003},{"$f":"MAX(M8,M23)","v":2},10,{"$f":"AVERAGE(N8,N23)","v":0.64500000000000002},{"$f":"MAX(O8,O23)","v":1},null,null,null,"Feb",0.31,2,0.28999999999999998,1]
["Mar",20,0.5,3,10,0.505,1,null,null,null,"Mar",0.16,2,0.17,1,null,"Whole Installation table A5:G18:"]
["Apr",20,0.2,4,10,0,0,null,null,null,"Apr",0,2,0,0,null,"Mean: for 1/2 hourly and daily periods calculate mean of values across all operational combustion lines for the month"]
["May",20,1.05,2,10,0.98,1,null,null,null,"May",1,2,1,1]
["Jun",20,0.51500000000000001,5,10,0.53,1,null,null,null,"Jun",0.1,2,0.1,1]
["Jul",20,0.5,5,10,0.49838709677419357,1,null,null,null,"Jul",{"$f":"AVERAGE('[1]EA Monthly Report - 05 October '!$E$428:$AI$428)","v":9.6774193548387094E-2},5,{"$f":"AVERAGE('[1]EA Monthly Report - 05 October '!$E$433:$AI$433)","v":9.6774193548387094E-2},1,null,"Maximum: for 1/2 hourly and daily periods use the highest value across all operational combustion lines for the month"]
["Aug",20,0.26064516129032256,20,10,0.1806451612903226,1,null,null,null,"Aug",{"$f":"AVERAGE('[1]EA Monthly Report - 05 October '!$E$448:$AI$448)","v":0.36},5,{"$f":"AVERAGE('[1]EA Monthly Report - 05 October '!$E$453:$AI$453)","v":0.2},1]
["Sep",20,5.3703703703703698E-2,10,10,1.7857142857142856E-2,1,null,null,null,"Sep",{"$f":"AVERAGE('[1]EA Monthly Report - 05 October '!$E$468:$AH$468)","v":7.407407407407407E-2},3,{"$f":"AVERAGE('[1]EA Monthly Report - 05 October '!$E$473:$AH$473)","v":0},0]
["Oct",20,0.05,10,10,5.5E-2,1,null,null,null,"Oct",0.1,10,0.11,1]
["Nov",20,1.8515E-2,1,10,0,0,null,null,null,"Nov",0,1,0,0]
["Dec",20,0,2,10,0,0,null,null,null,"Dec",0,2,0,0]
[null,null,null,null,null,null,null,null,null,null,"Annual",{"$f":"AVERAGE(L7:L18)","v":0.20757068896853845},{"$f":"MAX(M7:M18)","v":10},{"$f":"AVERAGE(N7:N18)","v":0.18889784946236557},{"$f":"MAX(O7:O18)","v":1}]
[]
[null,null,null,null,null,null,null,null,null,{"$f":"+A6","v":2020},"mg/Nm3","Monthly 1/2 hourly mean","Monthly 1/2 hourly maximum","Monthly daily mean","Monthly daily maximum"]
[null,null,null,null,null,null,null,null,null,"A2","Jan",1.03,3,1.03,2]
[null,null,null,null,null,null,null,null,null,null,"Feb",1,2,1,1]
[null,null,null,null,null,null,null,null,null,null,"Mar",0.84,3,0.84,1]
[null,null,null,null,null,null,null,null,null,null,"Apr",0.4,4,0,0]
[null,null,null,null,null,null,null,null,null,null,"May",1.1000000000000001,2,0.96,1]
[null,null,null,null,null,null,null,null,null,null,"Jun",0.93,5,0.96,1]
[null,null,null,null,null,null,null,null,null,null,"Jul",{"$f":"AVERAGE('[1]EA Monthly Report - 05 October '!$E$68:$AI$68)","v":0.90322580645161288},4,{"$f":"AVERAGE('[1]EA Monthly Report - 05 October '!$E$73:$AI$73)","v":0.9},1]
[null,null,null,null,null,null,null,null,null,null,"Aug",{"$f":"AVERAGE('[1]EA Monthly Report - 05 October '!$E$88:$AI$88)","v":0.16129032258064516},20,{"$f":"AVERAGE('[1]EA Monthly Report - 05 October '!$E$93:$AI$93)","v":0.16129032258064516},1]
[null,null,null,null,null,null,null,null,null,null,"Sep",{"$f":"AVERAGE('[1]EA Monthly Report - 05 October '!$E$108:$AH$108)","v":3.3333333333333333E-2},10,{"$f":"AVERAGE('[1]EA Monthly Report - 05 October '!$E$113:$AH$113)","v":3.5714285714285712E-2},1]
[null,null,null,null,null,null,null,null,null,null,"Oct",0,1,0,0]
[null,null,null,null,null,null,null,null,null,null,"Nov",3.703E-2,1,0,0]
[null,null,null,null,null,null,null,null,null,null,"Dec",0,2,0,0]
[null,null,null,null,null,null,null,null,null,null,"Annual",{"$f":"AVERAGE(L22:L33)","v":0.53623995519713252},{"$f":"MAX(M22:M33)","v":20},{"$f":"AVERAGE(N22:N33)","v":0.4905837173579109},{"$f":"MAX(O22:O33)","v":2}]
[]
[]
[]
[]
[]
[]
[]
[]
[]
[]
[]
[]
[]
["Comments :"]
["An elevated half hour average (13:30pm – 13:59pm) of Total Organic Carbon (TOC) was recorded with a measurement of 20.16 mg/m3 (Half hour permit limit 20 mg/m3) from emission point A2. "]

{"sheet":"Particulates","index":18,"n_rows":48,"n_cols":17,"rows_kept":48,"cut":false,"hidden":false,"merged":[[3,16,7,18],[9,16,11,18],[12,16,15,18],[66,9,78,9],[4,1,4,3],[4,4,4,6],[4,9,4,14],[6,9,18,9],[21,9,33,9],[36,9,48,9],[47,0,47,6],[48,0,51,6],[51,9,63,9]]}
[{"$f":"+'Cover Page'!$B$29","v":"Annual Performance Report 2020"},null,null,null,{"$f":"+'Cover Page'!$B$33","v":"Ardley Energy Recovery Facility"}]
[]
["Monitoring of Particulate matter emissions",null,null,"Whole Installation",null,null,null,null,null,{"$f":"+A3","v":"Monitoring of Particulate matter emissions"},null,null,null,"Per Combustion Line",null,null,"Notes:"]
[null,null,null,null,null,null,null,null,null,null,null,null,null,null,null,null,"User to add logic to complete Whole installation, Table A5:G18. From the data in Per Combustion Line, Table J6:O79, subject to No. of lines installed"]
["mg/Nm3","1/2 Hourly Reference Periods",null,null,"Daily Reference Periods"]
[{"$f":"+'Cover Page'!C39","v":2020},"1/2 hourly PM ELV","Monthly 1/2 hourly mean","Highest 1/2 hourly maximum","Daily PM ELV","Monthly daily mean","Highest daily maximum",null,null,{"$f":"+A6","v":2020},"mg/Nm3","Monthly 1/2 hourly mean","Monthly 1/2 hourly maximum","Monthly daily mean","Monthly daily maximum"]
["Jan",30,{"$f":"AVERAGE(L7,L22)","v":0.87},{"$f":"MAX(M7,M22)","v":1},10,{"$f":"AVERAGE(N7,N22)","v":0.86499999999999999},{"$f":"MAX(O7,O22)","v":1},null,null,"A1","Jan",0.9,1,0.9,1]
["Feb",30,{"$f":"AVERAGE(L8,L23)","v":0.875},{"$f":"MAX(M8,M23)","v":1},10,{"$f":"AVERAGE(N8,N23)","v":0.875},{"$f":"MAX(O8,O23)","v":1},null,null,null,"Feb",1,1,1,1]
["Mar",30,0.85499999999999998,1,10,0.85499999999999998,1,null,null,null,"Mar",1,1,1,1,null,"Whole Installation table A5:G18:"]
["Apr",30,0.9,1,10,0.91500000000000004,1,null,null,null,"Apr",0.9,1,0.9,1,null,"Mean: for 1/2 hourly and daily periods calculate mean of values across all operational combustion lines for the month"]
["May",30,0.96500000000000008,1,10,0.98,1,null,null,null,"May",1,1,1,1]
["Jun",30,0.94,1,10,0.96,1,null,null,null,"Jun",1,1,1,1]
["Jul",30,0.9838709677419355,2,10,0.98333333333333339,1,null,null,null,"Jul",{"$f":"AVERAGE('[1]EA Monthly Report - 05 October '!$E$368:$AI$368)","v":1},1,{"$f":"AVERAGE('[1]EA Monthly Report - 05 October '!$E$373:$AI$373)","v":1},1,null,"Maximum: for 1/2 hourly and daily periods use the highest value across all operational combustion lines for the month"]
["Aug",30,1.064516129032258,4,10,1.064516129032258,2,null,null,null,"Aug",{"$f":"AVERAGE('[1]EA Monthly Report - 05 October '!$E$388:$AI$388)","v":1},2,{"$f":"AVERAGE('[1]EA Monthly Report - 05 October '!$E$393:$AI$393)","v":1},1]
["Sep",30,1,2,10,{"$f":"AVERAGE(N15,N30)","v":1},1,null,null,null,"Sep",{"$f":"AVERAGE('[1]EA Monthly Report - 05 October '!$E$408:$AH$408)","v":1},2,{"$f":"AVERAGE('[1]EA Monthly Report - 05 October '!$E$413:$AH$413)","v":1},1]
["Oct",30,1.5,4,10,1.0415000000000001,2,null,null,null,"Oct",1,2,1,1]
["Nov",30,1.026,3,10,1,1,null,null,null,"Nov",1.052,3,1,1]
["Dec",30,1,2,10,1,1,null,null,null,"Dec",1,2,1,1]
[null,null,null,null,null,null,null,null,null,null,"Annual",{"$f":"AVERAGE(L7:L18)","v":0.98766666666666669},{"$f":"MAX(M7:M18)","v":3},{"$f":"AVERAGE(N7:N18)","v":0.98333333333333339},{"$f":"MAX(O7:O18)","v":1}]
[]
[null,null,null,null,null,null,null,null,null,{"$f":"+A6","v":2020},"mg/Nm3","Monthly 1/2 hourly mean","Monthly 1/2 hourly maximum","Monthly daily mean","Monthly daily maximum"]
[null,null,null,null,null,null,null,null,null,"A2","Jan",0.84,1,0.83,1]
[null,null,null,null,null,null,null,null,null,null,"Feb",0.75,1,0.75,1]
[null,null,null,null,null,null,null,null,null,null,"Mar",0.71,1,0.71,1]
[null,null,null,null,null,null,null,null,null,null,"Apr",0.9,1,0.93,1]
[null,null,null,null,null,null,null,null,null,null,"May",0.93,1,0.96,1]
[null,null,null,null,null,null,null,null,null,null,"Jun",0.88,1,0.92,1]
[null,null,null,null,null,null,null,null,null,null,"Jul",{"$f":"AVERAGE('[1]EA Monthly Report - 05 October '!$E$8:$AI$8)","v":0.967741935483871},2,{"$f":"AVERAGE('[1]EA Monthly Report - 05 October '!$E$13:$AI$13)","v":0.96666666666666667},1]
[null,null,null,null,null,null,null,null,null,null,"Aug",{"$f":"AVERAGE('[1]EA Monthly Report - 05 October '!$E$28:$AI$28)","v":1.1290322580645162},4,{"$f":"AVERAGE('[1]EA Monthly Report - 05 October '!$E$33:$AI$33)","v":1.1290322580645162},2]
[null,null,null,null,null,null,null,null,null,null,"Sep",{"$f":"AVERAGE('[1]EA Monthly Report - 05 October '!$E$48:$AH$48)","v":1},2,{"$f":"AVERAGE('[1]EA Monthly Report - 05 October '!$E$53:$AH$53)","v":1},1]
[null,null,null,null,null,null,null,null,null,null,"Oct",2,4,1.083,2]
[null,null,null,null,null,null,null,null,null,null,"Nov",1,2,1,1]
[null,null,null,null,null,null,null,null,null,null,"Dec",1,2,1,1]
[null,null,null,null,null,null,null,null,null,null,"Annual",{"$f":"AVERAGE(L22:L33)","v":1.0088978494623655},{"$f":"MAX(M22:M33)","v":4},{"$f":"AVERAGE(N22:N33)","v":0.93989157706093185},{"$f":"MAX(O22:O33)","v":2}]
[]
[]
[]
[]
[]
[]
[]
[]
[]
[]
[]
[]
[]
["Comments :"]

{"sheet":"CO 95% 10 min","index":19,"n_rows":49,"n_cols":19,"rows_kept":49,"cut":false,"hidden":false,"merged":[[3,18,7,20],[9,18,11,20],[12,18,15,20],[66,10,78,10],[4,1,4,4],[4,5,4,7],[4,10,4,16],[6,10,18,10],[21,10,33,10],[36,10,48,10],[47,0,47,7],[48,0,51,7],[51,10,63,10]]}
[{"$f":"+'Cover Page'!$B$29","v":"Annual Performance Report 2020"},null,null,null,{"$f":"+'Cover Page'!$B$33","v":"Ardley Energy Recovery Facility"}]
[]
["Monitoring of Carbon Monoxide (10-minute avg)",null,null,null,"Whole Installation",null,null,null,null,{"$f":"+A3","v":"Monitoring of Carbon Monoxide (10-minute avg)"},null,null,null,null,"Per Combustion Line",null,"Notes:",null,"Notes:"]
[null,null,null,null,null,null,null,null,null,null,null,null,null,null,null,null,null,null,"User to add logic to complete Whole installation, Table A5:H18. From the data in Per Combustion Line, Table K6:Q79, subject to No. of lines installed"]
["mg/Nm3","10-minute Reference Periods",null,null,null,"Daily Reference Periods"]
[{"$f":"+'Cover Page'!C39","v":2020},"95%ile 10-min avg CO ELV","95%ile 10-min avg maximum","Monthly CO 10-min avg mean","10-min avg maximum","Daily CO ELV","Monthly daily mean","Highest daily maximum",null,null,{"$f":"+A6","v":2020},"mg/Nm3","95%ile 10-min avg maximum","Monthly CO 10-min avg mean","10-min avg maximum","Monthly daily mean","Monthly daily maximum"]
["Jan",150,{"$f":"MAX(N22,M7)","v":7},{"$f":"AVERAGE(N7,N22)","v":0.94800000000000006},{"$f":"MAX(O7,O22)","v":240.39},50,{"$f":"AVERAGE(P7,P22)","v":0.94800000000000006},{"$f":"MAX(Q7,Q22)","v":5},null,null,"A1","Jan",7,9.6000000000000002E-2,240.39,9.6000000000000002E-2,2]
["Feb",{"$f":"+B7","v":150},{"$f":"MAX(N23,M8)","v":3},0.64500000000000002,{"$f":"MAX(O8,O23)","v":215.9},{"$f":"+F7","v":50},0.64500000000000002,2,null,null,null,"Feb",3,0.08,215.9,0.08,2]
["Mar",{"$f":"+B8","v":150},{"$f":"MAX(N24,M9)","v":4},0.435,337.19,{"$f":"+F8","v":50},0.435,3,null,null,null,"Mar",4,0.03,55.47,0.03,1,null,"Whole Installation table A5:H18:"]
["Apr",150,{"$f":"MAX(M10,M25)","v":1},0.08,334.69,50,0.08,2,null,null,null,"Apr",1,0,334.69,0,0,null,"Mean: for 10-min and daily periods use average of all operational combustion lines."]
["May",150,4,0.15000000000000002,658.73,50,0.15000000000000002,3,null,null,null,"May",4,0.16,532.13,0.16,3]
["Jun",150,20,0.54,189.83,50,0.38500000000000001,13,null,null,null,"Jun",12,0.27,189.83,0.27,5]
["Jul",150,5,0.72599999999999998,2384.58,50,0.72599999999999998,26,null,null,null,"Jul",5,0.61199999999999999,407.39,0.61199999999999999,5,null,"Maximum: for 10-min and daily periods use the highest of all operational combustion lines in any month."]
["Aug",150,28,4.1750000000000007,2821.42,50,4.07,34,null,null,null,"Aug",28,4.4800000000000004,549.66999999999996,4.2699999999999996,9]
["Sep",150,10,4,1736.83,50,4,19,null,null,null,"Sep",10,4.3,1736.83,4.3,19]
["Oct",150,97,4.87,2175.64,50,4.5679999999999996,32,null,null,null,"Oct",13,3.95,2175.64,4.0529999999999999,32]
["Nov",150,73,2.601315,155.1,50,2.6223000000000001,16,null,null,null,"Nov",73,2.0526300000000002,155.1,2.0526,16]
["Dec",150,6,0.75800000000000001,85.07,50,0.76500000000000001,2,null,null,null,"Dec",2,0,85.07,0,0]
[null,null,null,null,null,null,null,null,null,null,null,"Annual",{"$f":"AVERAGE(M7:M18)","v":13.5},{"$f":"AVERAGE(N7:N18)","v":1.3358858333333334},{"$f":"MAX(O7:O18)","v":2175.64},{"$f":"AVERAGE(P7:P18)","v":1.3269666666666666},{"$f":"MAX(Q7:Q18)","v":32}]
[]
[null,null,null,null,null,null,null,null,null,null,{"$f":"+A6","v":2020},"mg/Nm3","95%ile 10-min avg maximum","Monthly CO 10-min avg mean","10-min avg maximum","Monthly daily mean","Monthly daily maximum"]
[null,null,null,null,null,null,null,null,null,null,"A2","Jan",8,1.8,93.35,1.8,5]
[null,null,null,null,null,null,null,null,null,null,null,"Feb",4,1.21,60.94,1.21,2]
[null,null,null,null,null,null,null,null,null,null,null,"Mar",5,0.84,337.19,0.84,3]
[null,null,null,null,null,null,null,null,null,null,null,"Apr",1,0.16,297.89,0.16,2]
[null,null,null,null,null,null,null,null,null,null,null,"May",2,0.14000000000000001,658.73,0.14000000000000001,3]
[null,null,null,null,null,null,null,null,null,null,null,"Jun",20,0.81,72.489999999999995,0.5,13]
[null,null,null,null,null,null,null,null,null,null,null,"Jul",4,0.84,2384.58,0.84,26]
[null,null,null,null,null,null,null,null,null,null,null,"Aug",9,3.87,2821.42,3.87,34]
[null,null,null,null,null,null,null,null,null,null,null,"Sep",7,3.7,485.72,3.7,8]
[null,null,null,null,null,null,null,null,null,null,null,"Oct",97,5.79,97.19,5.0830000000000002,6]
[null,null,null,null,null,null,null,null,null,null,null,"Nov",11,3.15,92.17,3.1920000000000002,6]
[null,null,null,null,null,null,null,null,null,null,null,"Dec",6,1.516,11.53,1.53,2]
[null,null,null,null,null,null,null,null,null,null,null,"Annual",{"$f":"AVERAGE(M7:M33)","v":13.98},{"$f":"AVERAGE(N7:N33)","v":1.6477006333333333},{"$f":"MAX(O22:O33)","v":2821.42},{"$f":"AVERAGE(P22:P33)","v":1.9054166666666668},{"$f":"MAX(Q22:Q33)","v":34}]
[]
[]
[]
[]
[]
[]
[]
[]
[]
[]
[]
[]
[]
["Comments :"]
["Environment Agency explanatory note: The 10-minute average ELV is based on the “95th percentile”. In this case this means that 95% of the 10 minute averages in the relevant 24-hour period (i.e. 137) must be below 150 mg/Nm3, and 5% (i.e. 7) are allowed to be any value above 150 mg/Nm3. Whilst we expect operators to minimise CO emissions at all times, it is perfectly acceptable for the value of the maximum 10-minute average to be above 150 mg/Nm3, provided the 95th percentile ELV has been met for that period. "]